fUSD/lending_fUSD_20240506
["ID","MTS","AMOUNT","RATE_DAILY","PERIOD"]
[326480441,1714985448262,-1074.93450512,0.00013,2]
[326480442,1714985448332,-289.42734966,0.00013,2]
[326480472,1714986632901,-160.56191225,0.00011199,2]
[326480475,1714986632911,-4594.84371636,0.00011199,2]
[326480478,1714986632923,-543.53286,0.00011199,2]
[326480482,1714986633264,-317.67584938,0.00011199,2]
[326480483,1714986633273,-205.92372303,0.00011298,2]
[326480484,1714986633282,-6.40042759,0.00011299,2]
[326480485,1714986633296,-2784.48495281,0.00011299,2]
[326480486,1714986633309,-1079.25015875,0.00011299,2]
[326480487,1714986633320,-517.0,0.00011299,2]
[326480488,1714986633332,-3970.10320016,0.00011299,2]
[326480489,1714986633341,-1378.70682127,0.00011299,2]
[326480490,1714986633351,-2361.76986435,0.000113,2]
[326480491,1714986633360,-1500.0,0.00011419,2]
[326480492,1714986633369,-250.0,0.00011432,2]
[326480493,1714986633378,-358.85,0.00011449,2]
[326480494,1714986633389,-160.56191224,0.00011475,2]
[326480495,1714986633398,-150.0,0.00011518,2]
[326480496,1714986633407,-314.51,0.00011518,2]
[326480497,1714986633416,-242.23105719,0.0001152,2]
[326480498,1714986633425,-502.29836421,0.0001152,2]
[326480499,1714986633434,-266.24510983,0.0001152,2]
[326480500,1714986633444,-156.44433401,0.0001152,2]
[326480501,1714986633453,-1889.08592415,0.00011521,2]
[326480502,1714986633462,-448058.17866267,0.00011522,2]
[326480503,1714986633472,-290.42,0.00011575,2]
[326480504,1714986633482,-249.86,0.00011592,2]
[326480505,1714986633491,-165.94,0.00011849,2]
[326480506,1714986633501,-238.25,0.00011867,2]
[326480507,1714986633510,-4513.03,0.00011887,2]
[326480508,1714986633519,-750.14,0.00011931,2]
[326480509,1714986633529,-165.64,0.00012159,2]
[326480510,1714986633538,-165.64,0.0001218,2]
[326480511,1714986633548,-165.64,0.000122,2]
[326480512,1714986633557,-165.64,0.0001222,2]
[326480514,1714986633566,-1560.64174384,0.00012735,2]
[326480516,1714986633576,-3499.67939162,0.00012777,2]
[326480518,1714986633585,-162.85270542,0.00012869,2]
[326480520,1714986633595,-500.0,0.00012896,2]
[326480522,1714986633604,-2284.64695508,0.000129,2]
[326480524,1714986633614,-658.24000089,0.00012989,2]
[326480526,1714986633623,-219.1431643,0.00012989,2]
[326480528,1714986633633,-677.3911828,0.00012989,2]
[326480530,1714986633644,-4028.4075531,0.00012989,2]
[326480532,1714986633653,-262.9717972,0.00012989,2]
[326480534,1714986633663,-363.8794915,0.00012989,2]
[326480536,1714986633672,-1864.8587026,0.00012989,2]
[326480538,1714986633682,-179.4760205,0.00012989,2]
[326480540,1714986633691,-165.17255466,0.0001299,2]
[326480542,1714986633701,-1755.92433775,0.00012998,2]
[326480544,1714986633711,-1215.18868747,0.00012998,2]
[326480546,1714986633721,-478.60847577,0.00012998,2]
[326480548,1714986633730,-534.79759922,0.00012998,2]
[326480549,1714986633739,-222.13928608,0.00012999,2]
[326480550,1714986633749,-2327.94533073,0.00012999,2]
[326480551,1714986633759,-174147.84181304,0.00013,2]
[326480552,1714986633769,-485.56512759,0.00013,2]
[326480553,1714986633779,-30497.34998969,0.00013,2]
[326480554,1714986633789,-298.50241055,0.00013,2]
[326480555,1714986633798,-3000.0,0.00013,2]
[326480556,1714986633808,-705.0,0.00013,2]
[326480557,1714986633818,-1000.0,0.00013,2]
[326480558,1714986633827,-319.58972071,0.00013,2]
[326480559,1714986633837,-290.42,0.00013022,2]
[326480560,1714986633846,-249.86,0.00013041,2]
[326480561,1714986633856,-10000.0,0.00013136,2]
[326480562,1714986633866,-750.14,0.00013422,2]
[326480563,1714986633876,-446.05,0.00013425,2]
[326480564,1714986633887,-580.59,0.00013425,2]
[326480565,1714986633897,-155.0,0.000136,2]
[326480566,1714986633906,-200.0,0.00013699,2]
[326480567,1714986633916,-200.0,0.00013699,2]
[326480568,1714986633927,-200.0,0.00013699,2]
[326480569,1714986633938,-200.0,0.00013699,2]
[326480570,1714986633948,-200.0,0.00013699,2]
[326480571,1714986633959,-200.0,0.00013699,2]
[326480572,1714986633970,-1000.0,0.00013699,2]
[326480573,1714986633980,-1000.0,0.00013699,2]
[326480574,1714986633990,-1000.0,0.00013699,2]
[326480575,1714986633999,-1000.0,0.00013699,2]
[326480576,1714986634008,-1000.0,0.00013699,2]
[326480577,1714986634018,-1000.0,0.00013699,2]
[326480578,1714986634027,-1000.0,0.00013699,2]
[326480579,1714986634036,-1000.0,0.00013699,2]
[326480580,1714986634045,-1000.0,0.00013699,2]
[326480581,1714986634054,-200.0,0.00013699,2]
[326480582,1714986634064,-200.0,0.00013699,2]
[326480583,1714986634073,-200.0,0.00013699,2]
[326480584,1714986634083,-200.0,0.00013699,2]
[326480585,1714986634092,-200.0,0.00013699,2]
[326480586,1714986634101,-200.0,0.00013699,2]
[326480587,1714986634111,-1027.0,0.00013699,2]
[326480588,1714986634121,-2751.0,0.00013699,2]
[326480589,1714986634130,-200.0,0.00013699,2]
[326480590,1714986634142,-150.0,0.00013699,2]
[326480591,1714986634151,-500.0,0.00013699,2]
[326480592,1714986634162,-2284.64695505,0.00013814,2]
[326480593,1714986634172,-150.161,0.00013867,2]
[326480594,1714986634181,-150.0,0.00013867,2]
[326480595,1714986634190,-973.202,0.00013867,2]
[326480596,1714986634200,-2301.6,0.00013867,2]
[326480597,1714986634210,-1398.674,0.00013867,2]
[326480598,1714986634223,-463.527,0.00013867,2]
[326480599,1714986634233,-543.0,0.00013867,2]
[326480600,1714986634242,-1259.0,0.00013867,2]
[326480601,1714986634251,-1217.0,0.00013867,2]
[326480602,1714986634262,-1786.0,0.00013867,2]
[326480603,1714986634271,-437.0,0.00013867,2]
[326480604,1714986634281,-811.712,0.00013867,2]
[326480605,1714986634290,-611.08,0.00013867,2]
[326480606,1714986634302,-151.127,0.00013867,2]
[326480607,1714986634312,-421.0,0.00013867,2]
[326480608,1714986634321,-1477.722,0.00013867,2]
[326480609,1714986634330,-151.408,0.00013867,2]
[326480610,1714986634339,-2451.0,0.00013867,2]
[326480611,1714986634349,-1644.0,0.00013867,2]
[326480612,1714986634360,-1139.0,0.00013867,2]
[326480613,1714986634370,-444.0,0.00013867,2]
[326480614,1714986634380,-215.0,0.00013867,2]
[326480615,1714986634393,-3152.0,0.00013867,2]
[326480616,1714986634402,-288.0,0.00013867,2]
[326480617,1714986634412,-5904.0,0.00013867,2]
[326480618,1714986634422,-5742.0,0.00013867,2]
[326480619,1714986634431,-2294.0,0.00013867,2]
[326480620,1714986634441,-37744.0,0.00013867,2]
[326480621,1714986634450,-282.03665938,0.00014,2]
[326480622,1714986634460,-769.63853189,0.00014,2]
[326480623,1714986634470,-1000.0,0.00014,2]
[326480624,1714986634479,-151.73,0.00014,2]
[326480625,1714986634488,-151.73,0.00014,2]
[326480626,1714986634498,-193.46,0.00014132,2]
[326480627,1714986634508,-23900.0,0.00014132,2]
[326480628,1714986634517,-290.42,0.00014469,2]
[326480629,1714986634526,-249.86,0.0001449,2]
[326480630,1714986634535,-4423.00082105,0.00014627,2]
[326480631,1714986635399,-90.02917895,0.00014627,2]
[326480632,1714986635408,-165.94,0.00014812,2]
[326480633,1714986635418,-750.14,0.00014914,2]
[326480634,1714986635427,-1643.51340845,0.00015,2]
[326480646,1714986639104,-353.50613739,0.00013136,2]
[326480650,1714986639116,-275.68,0.00013136,2]
[326480656,1714986639128,-252.68095448,0.00013136,2]
[326480658,1714986639617,-220.81045868,0.00013136,2]
[326480660,1714986639627,-1058.0,0.00013867,2]
[326480661,1714986639637,-3356.48659155,0.00015,2]
[326480662,1714986639648,-489.0,0.00015,2]
[326480663,1714986639658,-1095.0,0.00015,2]
[326480664,1714986639668,-6906.0,0.00015,2]
[326480665,1714986639678,-150.52,0.00015068,2]
[326480666,1714986639688,-843.78,0.00015425,2]
[326480667,1714986639697,-522.94,0.00015425,2]
[326480668,1714986639706,-351.06,0.00015425,2]
[326480669,1714986639716,-150.0,0.00015425,2]
[326480670,1714986639726,-150.0,0.00015425,2]
[326480671,1714986639735,-163.12,0.00015425,2]
[326480672,1714986639745,-522.94,0.00015425,2]
[326480673,1714986639754,-150.0,0.00015425,2]
[326480674,1714986639764,-150.0,0.00015425,2]
[326480675,1714986639774,-150.0,0.00015425,2]
[326480676,1714986639784,-163.12,0.00015425,2]
[326480677,1714986639794,-351.06,0.00015425,2]
[326480678,1714986639803,-180.45,0.00015425,2]
[326480679,1714986639813,-150.0,0.00015425,2]
[326480680,1714986639822,-150.0,0.00015425,2]
[326480681,1714986639832,-351.06,0.00015425,2]
[326480682,1714986639842,-163.12,0.00015425,2]
[326480683,1714986639852,-150.0,0.00015425,2]
[326480684,1714986639862,-167.19,0.00015831,2]
[326480685,1714986639872,-167.0,0.00015831,2]
[326480686,1714986639882,-220.81,0.00015831,2]
[326480687,1714986639893,-290.42,0.00015915,2]
[326480688,1714986639903,-249.86,0.00015939,2]
[326480689,1714986639912,-3076.46832238,0.00016,2]
[326480690,1714986639922,-19563.17365467,0.00016,2]
[326480691,1714986639932,-2284.64695505,0.00016152,2]
[326480692,1714986639941,-159.87,0.00016164,2]
[326480693,1714986639951,-167.0,0.00016354,2]
[326480694,1714986639960,-750.14,0.00016405,2]
[326480695,1714986639970,-780.58,0.00016438,2]
[326480696,1714986639979,-1225.44903621,0.000165,2]
[326480697,1714986639989,-170.808,0.00016522,2]
[326480698,1714986639999,-170.808,0.00016597,2]
[326480701,1714986640319,-144.27924435,0.00016672,2]
[326480702,1714986640338,-26.52875565,0.00016672,2]
[326480703,1714986640348,-150.0,0.00016867,2]
[326480704,1714986640358,-2301.0,0.00016867,2]
[326480705,1714986640370,-542.0,0.00016867,2]
[326480706,1714986640380,-1259.0,0.00016867,2]
[326480707,1714986640390,-611.0,0.00016867,2]
[326480708,1714986640401,-183.072,0.00016867,2]
[326480709,1714986640411,-2448.497,0.00016867,2]
[326480710,1714986640421,-1079.19,0.00016867,2]
[326480711,1714986640430,-302.954,0.00016867,2]
[326480712,1714986640440,-444.0,0.00016867,2]
[326480713,1714986640450,-210.0,0.00016867,2]
[326480714,1714986640459,-2123.014,0.00016867,2]
[326480715,1714986640468,-288.0,0.00016867,2]
[326480716,1714986640478,-268.83737056,0.00016867,2]
[326480717,1714986640491,-5635.16262944,0.00016867,2]
[326480718,1714986640501,-5236.718,0.00016867,2]
[326480719,1714986640512,-2292.0,0.00016867,2]
[326480720,1714986640523,-1058.0,0.00016867,2]
[326480723,1714986640533,-167.0,0.00016876,2]
[326480725,1714986640543,-2100.0,0.00016976,2]
[326480727,1714986640553,-300.0,0.00016976,2]
[326480728,1714986640562,-1749.7901495,0.00017,2]
[326480729,1714986640572,-373.46861093,0.00017,2]
[326480730,1714986640582,-300.4,0.0001726,2]
[326480731,1714986640592,-290.42,0.00017362,2]
[326480732,1714986640602,-4513.03,0.00017367,2]
[326480733,1714986640612,-249.86,0.00017388,2]
[326480734,1714986640622,-167.0,0.00017399,2]
[326480735,1714986640631,-165.94,0.00017774,2]
[326480736,1714986640642,-151.73,0.0001787,2]
[326480737,1714986640652,-9632.48905404,0.0001788,2]
[326480738,1714986640662,-5390.68931359,0.0001788,2]
[326480739,1714986640674,-4241.79974036,0.0001788,2]
[326480740,1714986640683,-1708.34058585,0.0001788,2]
[326480741,1714986640695,-7924.1484681,0.0001788,2]
[326480742,1714986640705,-9632.48905395,0.0001788,2]
[326480743,1714986640715,-2047.94577269,0.0001788,2]
[326480744,1714986640724,-2047.94577263,0.0001788,2]
[326480745,1714986640734,-2047.94577263,0.0001788,2]
[326480746,1714986640744,-2047.94577263,0.0001788,2]
[326480747,1714986640754,-750.14,0.00017896,2]
[326480748,1714986640764,-167.0,0.00017921,2]
[326480749,1714986640774,-1250.0,0.00018,3]
[326480750,1714986640785,-3000.0,0.00018,2]
[326480751,1714986640795,-167.0,0.00018444,2]
[326480752,1714986640805,-220.81,0.00018444,2]
[326480753,1714986640815,-2284.64695505,0.00018491,2]
[326480754,1714986640825,-500.0,0.000185,2]
[326480755,1714986640836,-301.25,0.00018712,2]
[326480756,1714986640846,-1003.53938613,0.00018974,2]
[326480757,1714986640855,-152.56,0.00019,2]
[326480758,1714986640865,-156.09725218,0.00019011,2]
[326480759,1714986640875,-151.85369651,0.00019013,2]
[326480760,1714986640885,-151.85369651,0.00019042,2]
[326480761,1714986640896,-203.34356579,0.00019048,2]
[326480762,1714986640906,-203.34356579,0.00019054,2]
[326480763,1714986640916,-203.34356579,0.00019063,2]
[326480764,1714986640926,-2347.09444045,0.00019116,2]
[326480765,1714986641353,-583.84889202,0.00019116,2]
[326480766,1714986641364,-326.025,0.00019116,2]
[326480776,1714986645332,-298.50241055,0.00013,2]
[326480780,1714986645367,-183.25258945,0.00018222,14]
[326480799,1714986646382,-85.04741055,0.00018222,14]
[326480803,1714986646393,-268.3,0.00019111,14]
[326480806,1714986646403,-8357.23873931,0.00019115,2]
[326480809,1714986646416,-6375.52072148,0.00019116,2]
[326480812,1714986646426,-2047.94577263,0.00019116,2]
[326480814,1714986646435,-157.84,0.00019178,2]
[326480816,1714986646444,-156.83,0.00019178,2]
[326480819,1714986646459,-163.03,0.00019178,2]
[326480821,1714986646469,-152.81,0.00019178,2]
[326480823,1714986646479,-200.09869924,0.00019185,2]
[326480825,1714986646488,-200.09869924,0.00019227,2]
[326480827,1714986646497,-154.64601454,0.00019395,2]
[326480829,1714986646507,-150.0,0.000195,2]
[326480831,1714986646516,-150.0,0.000195,2]
[326480832,1714986646526,-163.12,0.000195,2]
[326480833,1714986646536,-351.06,0.000195,2]
[326480834,1714986646545,-531.94,0.000195,2]
[326480835,1714986646555,-150.0,0.000195,2]
[326480836,1714986646564,-169.45,0.000195,2]
[326480837,1714986646575,-350.66,0.000195,2]
[326480838,1714986646585,-912.13,0.000195,2]
[326480839,1714986646594,-150.0,0.000195,2]
[326480840,1714986646604,-150.0,0.000195,2]
[326480841,1714986646616,-10675.70611587,0.000196,2]
[326480842,1714986646626,-200.20871114,0.00019629,2]
[326480843,1714986646637,-151.73,0.0001969,2]
[326480844,1714986646649,-166186.82420897,0.000197,2]
[326480845,1714986646658,-154.64601454,0.00019729,2]
[326480846,1714986646670,-206.0,0.0001985,2]
[326480847,1714986646680,-150.5,0.0001985,15]
[326480848,1714986646690,-150.5,0.0001986,15]
[326480849,1714986646700,-1259.0,0.00019867,2]
[326480850,1714986646709,-288.0,0.00019867,2]
[326480851,1714986646719,-1020.19,0.00019867,2]
[326480852,1714986646729,-1058.0,0.00019867,2]
[326480853,1714986646739,-150.5,0.0001987,15]
[326480854,1714986646749,-165.17255466,0.0001987,2]
[326480855,1714986646759,-151.73,0.0001987,2]
[326480856,1714986646768,-151.73,0.0001987,2]
[326480857,1714986646778,-151.73,0.0001987,2]
[326480858,1714986646788,-151.73,0.0001987,2]
[326480859,1714986646798,-151.73,0.0001987,2]
[326480860,1714986646808,-151.73,0.0001987,2]
[326480861,1714986646818,-471935.04126225,0.0001988,2]
[326480862,1714986646831,-1479.64572033,0.0001988,2]
[326480863,1714986647052,-2413.75,0.0001988,2]
[326480864,1714986647333,-404.0560625,0.0001988,2]
[326480865,1714986647345,-768.91297386,0.0001988,2]
[326480866,1714986647356,-654.22388655,0.0001988,2]
[326480867,1714986647368,-4043.32764993,0.0001988,2]
[326480868,1714986647379,-629.38092231,0.0001988,2]
[326480869,1714986647523,-9819.8505,0.0001988,2]
[326480870,1714986647535,-59151.14944729,0.0001988,2]
[326480875,1714987222153,-301.90641716,0.00010999,2]
[326480876,1714987222183,-1498.09358284,0.00011,2]
[326480877,1714987256369,155.0,0.00010999,2]
[326480878,1714987329005,298.50241055,0.00010999,2]
[326480879,1714987347011,298.50241055,0.00010999,2]
[326480880,1714987358985,3247.9951789,0.00010999,2]
[326480881,1714987360105,4000.0,0.00010999,2]
[326480882,1714987360887,3000.11747017,0.00010999,2]
[326480883,1714987367682,298.50241055,0.00010999,2]
[326480885,1714987383199,298.50241055,0.00010999,2]
[326480886,1714987399015,362.87079113,0.00010999,2]
[326480889,1714987720511,40.0069176,7.455e-05,2]
[326480890,1714987721172,2214.21496513,7.455e-05,2]
[326480913,1714987826780,1785.78503487,0.00010945,2]
[326480914,1714987827070,586.40060513,0.00010945,2]
[326480925,1714987833254,-79.07319905,0.00011,2]
[326480926,1714987833264,-155.0,0.00011411,2]
[326480927,1714987833273,-92.97280086,0.00011412,2]
[326480928,1714987833331,-62.02719914,0.00011412,2]
[326480929,1714987833342,-150.0,0.00011413,2]
[326480930,1714987833352,-1033.50289153,0.00011414,2]
[326480931,1714987833382,-1319.092,0.00011414,2]
[326480932,1714987833691,-5125.80895095,0.00011414,2]
[326480933,1714987833704,-878.83489683,0.00011414,2]
[326480934,1714987833713,-325.6350125,0.00011415,2]
[326480935,1714987833726,-1505.53918977,0.00011415,2]
[326480936,1714987833735,-860.17635286,0.00011417,2]
[326480937,1714987833747,-6287.00639652,0.00011417,2]
[326480938,1714987833759,-498.87594062,0.00011417,2]
[326480939,1714987833768,-151.46769876,0.00011418,2]
[326480940,1714987833778,-500.0,0.00011521,2]
[326480941,1714987833788,-3769.46022208,0.00012,2]
[326480942,1714987833799,-155.66,0.00014132,2]
[326480943,1714987833808,-250.0,0.00014132,2]
[326480944,1714987833818,-318.88,0.00014132,2]
[326480945,1714987833828,-1000.0,0.00014132,2]
[326480946,1714987833840,-150.0,0.00014537,3]
[326480947,1714987833853,-1259.0,0.00014575,2]
[326480948,1714987833862,-1058.0,0.00014575,2]
[326480949,1714987833872,-288.0,0.00014575,2]
[326480950,1714987833882,-3686.71661854,0.00014575,2]
[326480951,1714987834134,400.95363293,0.00010944,2]
[326480963,1714987837763,-282.03665938,0.00014131,2]
[326480965,1714987837773,-1073.22389521,0.00014575,2]
[326480974,1714987838531,-845.02,0.00014575,2]
[326480975,1714987838542,-299.03948625,0.00014575,2]
[326480976,1714987838551,-79.84194514,0.00015,2]
[326481007,1714987843632,-497.0,0.00014575,2]
[326481008,1714987843644,-293.42592338,0.00014575,2]
[326481009,1714987843655,-608.99707662,0.00014575,2]
[326481010,1714987843667,-25.12190341,0.00015,2]
[326481011,1714987843680,-415.89468958,0.00015,2]
[326481012,1714987843977,-545.14146187,0.00015,2]
[326481013,1714987843986,-761.45353813,0.00015898,2]
[326481014,1714987843998,-238.54646187,0.00015898,2]
[326481015,1714987844007,-61.56842279,0.000165,2]
[326481016,1714987844183,3012.64576194,0.000109,2]
[326481028,1714987844760,1231.35433806,0.000109,2]
[326481029,1714987844779,-1163.88061342,0.000165,2]
[326481030,1714987844789,-1526.40652003,0.00017,2]
[326481031,1714987844800,-223.38362947,0.00017,2]
[326481032,1714987844809,-500.0,0.00017,2]
[326481033,1714987844819,-401.43332108,0.00017,2]
[326481034,1714987844830,-98.56667892,0.00017,2]
[326481035,1714987844840,-500.0,0.00017,2]
[326481036,1714987844850,-500.0,0.00017,2]
[326481037,1714987844859,-500.0,0.00017,2]
[326481038,1714987844869,-237.32897982,0.00017,2]
[326481039,1714987844930,-262.67102018,0.00017,2]
[326481040,1714987844940,-500.0,0.00017,2]
[326481041,1714987844949,-500.0,0.00017,2]
[326481042,1714987844958,-500.0,0.00017,2]
[326481043,1714987844968,-500.0,0.00017,2]
[326481044,1714987844978,-500.0,0.00017,2]
[326481045,1714987844987,-500.0,0.00017,2]
[326481046,1714987844997,-500.0,0.00017,2]
[326481047,1714987845006,-500.0,0.00017,2]
[326481048,1714987845020,-500.0,0.00017,2]
[326481049,1714987845030,-500.0,0.00017,2]
[326481050,1714987845039,-500.0,0.00017,2]
[326481051,1714987845049,-500.0,0.00017,2]
[326481052,1714987845059,-500.0,0.00017,2]
[326481053,1714987845068,-500.0,0.00017,2]
[326481054,1714987845077,-500.0,0.00017,2]
[326481055,1714987845086,-500.0,0.00017,2]
[326481056,1714987845096,-500.0,0.00017,2]
[326481057,1714987845107,-500.0,0.00017,2]
[326481058,1714987845117,-500.0,0.00017,2]
[326481059,1714987845126,-500.0,0.00017,2]
[326481060,1714987845136,-500.0,0.00017,2]
[326481061,1714987845145,-500.0,0.00017,2]
[326481062,1714987845154,-500.0,0.00017,2]
[326481063,1714987845163,-500.0,0.00017,2]
[326481064,1714987845173,-500.0,0.00017,2]
[326481065,1714987845182,-500.0,0.00017,2]
[326481066,1714987845192,-500.0,0.00017,2]
[326481067,1714987845201,-500.0,0.00017,2]
[326481068,1714987845210,-500.0,0.00017,2]
[326481069,1714987845220,-500.0,0.00017,2]
[326481070,1714987845229,-500.0,0.00017,2]
[326481071,1714987845238,-500.0,0.00017,2]
[326481072,1714987845247,-500.0,0.00017,2]
[326481073,1714987845256,-500.0,0.00017,2]
[326481074,1714987845266,-500.0,0.00017,2]
[326481075,1714987845275,-500.0,0.00017,2]
[326481076,1714987845285,-500.0,0.00017,2]
[326481077,1714987845294,-500.0,0.00017,2]
[326481078,1714987845303,-500.0,0.00017,2]
[326481079,1714987845313,-500.0,0.00017,2]
[326481080,1714987845322,-500.0,0.00017,2]
[326481081,1714987845332,-500.0,0.00017,2]
[326481082,1714987845341,-500.0,0.00017,2]
[326481083,1714987845353,-500.0,0.00017,2]
[326481084,1714987845363,-500.0,0.00017,2]
[326481085,1714987845376,-500.0,0.00017,2]
[326481086,1714987845386,-500.0,0.00017,2]
[326481087,1714987845395,-500.0,0.00017,2]
[326481088,1714987845404,-500.0,0.00017,2]
[326481089,1714987845414,-500.0,0.00017,2]
[326481090,1714987845423,-500.0,0.00017,2]
[326481091,1714987845432,-500.0,0.00017,2]
[326481092,1714987845441,-500.0,0.00017,2]
[326481093,1714987845450,-500.0,0.00017,2]
[326481094,1714987845460,-500.0,0.00017,2]
[326481095,1714987845469,-500.0,0.00017,2]
[326481096,1714987845478,-500.0,0.00017,2]
[326481097,1714987845487,-500.0,0.00017,2]
[326481098,1714987845496,-500.0,0.00017,2]
[326481099,1714987845506,-500.0,0.00017,2]
[326481101,1714987845516,-500.0,0.00017,2]
[326481103,1714987845525,-500.0,0.00017,2]
[326481105,1714987845535,-500.0,0.00017,2]
[326481107,1714987845544,-500.0,0.00017,2]
[326481108,1714987845554,-500.0,0.00017,2]
[326481109,1714987845564,-500.0,0.00017,2]
[326481110,1714987845576,-500.0,0.00017,2]
[326481112,1714987845588,-500.0,0.00017,2]
[326481114,1714987845598,-500.0,0.00017,2]
[326481116,1714987845609,-500.0,0.00017,2]
[326481118,1714987845620,-500.0,0.00017,2]
[326481120,1714987845634,-208.45,0.00017506,2]
[326481122,1714987845644,-288.0,0.00017575,2]
[326481123,1714987845654,-1020.19,0.00017575,2]
[326481124,1714987845664,-155.66,0.00017664,2]
[326481125,1714987845673,-1000.0,0.00017664,2]
[326481126,1714987845683,-2751.0,0.00017697,2]
[326481127,1714987845693,-500.0,0.00017751,2]
[326481128,1714987845703,-150.0,0.00017757,2]
[326481129,1714987845712,-500.0,0.00017785,2]
[326481130,1714987845722,-483.82,0.00017813,2]
[326481131,1714987845731,-9032.85,0.00017926,2]
[326481132,1714987845741,-984.65,0.00017959,2]
[326481133,1714987845750,-371.7,0.00017976,2]
[326481134,1714987845760,-200.0,0.0001798,2]
[326481135,1714987845769,-1250.0,0.00018,3]
[326481136,1714987845778,-236.55,0.00018011,2]
[326481138,1714987845788,-531.77,0.00018104,2]
[326481140,1714987845797,-300.0,0.00018121,2]
[326481141,1714987845806,-196.3,0.00018141,2]
[326481142,1714987845815,-531.77,0.00018153,2]
[326481143,1714987845825,-531.77,0.00018203,2]
[326481144,1714987845834,-750.08499124,0.00018221,2]
[326481145,1714987845844,-268.3,0.00018222,14]
[326481146,1714987845854,-531.77,0.00018253,2]
[326481147,1714987845863,-531.77,0.00018302,2]
[326481148,1714987845873,-161.06,0.00018305,2]
[326481149,1714987845882,-531.77,0.00018352,2]
[326481150,1714987845892,-531.77,0.00018402,2]
[326481151,1714987845901,-531.77,0.00018451,2]
[326481152,1714987845912,-531.77,0.00018501,2]
[326481153,1714987845921,-531.77,0.00018551,2]
[326481154,1714987845930,-531.77,0.000186,2]
[326481155,1714987845939,-531.77,0.0001865,2]
[326481156,1714987845948,-531.77,0.00018699,2]
[326481157,1714987845957,-531.77,0.00018749,2]
[326481158,1714987845967,-531.77,0.00018799,2]
[326481159,1714987845977,-531.77,0.00018848,2]
[326481160,1714987845986,-531.77,0.00018898,2]
[326481161,1714987845995,-531.77,0.00018948,2]
[326481162,1714987846005,-531.77,0.00018997,2]
[326481163,1714987846014,-531.77,0.00019047,2]
[326481164,1714987846024,-161.06,0.0001906,2]
[326481165,1714987846034,-164.28504994,0.00019093,2]
[326481166,1714987846043,-268.3,0.00019111,14]
[326481167,1714987846052,-217.38778337,0.00019114,2]
[326481168,1714987846062,-157.30304109,0.00019114,2]
[326481169,1714987846072,-228.36493802,0.00019114,2]
[326481170,1714987846081,-343.45911395,0.00019115,2]
[326481171,1714987846091,-190.0,0.00019115,2]
[326481172,1714987846101,-719.35288557,0.00019116,2]
[326481173,1714987846110,-515.26,0.00019123,2]
[326481174,1714987846119,-157.84,0.00019178,2]
[326481175,1714987846128,-162.25,0.00019178,2]
[326481176,1714987846138,-800.0,0.00019397,2]
[326481177,1714987846147,-1000.0,0.00019431,2]
[326481178,1714987846156,-186.75878595,0.0001944,2]
[326481179,1714987846165,-2610.94538297,0.00019451,7]
[326481180,1714987846177,-1937.81762118,0.000195,2]
[326481181,1714987846189,-1670.0,0.000195,2]
[326481182,1714987846201,-1440.00014,0.00019522,2]